[Event "Caplin Hastings Masters 2023-24"]
[Site "Hastings"]
[Date "2023.12.30"]
[Round "3.8"]
[White "Sulskis, Sarunas"]
[Black "Nielsen, Andre"]
[Result "0-1"]
[ECO "A22"]
[WhiteElo "2490"]
[BlackElo "2239"]
[Annotator "TA"]
[PlyCount "108"]
[EventDate "2023.12.18"]
[EventType "swiss"]
[EventCountry "ENG"]
[SourceTitle "playchess.com"]
[Source "ChessBase"]
[SourceQuality "1"]
[TimeControl "40/6000+30:3000+30"]

{[%evp 9,108,13,33,41,34,34,34,33,33,33,53,14,58,20,17,37,25,-30,-25,-25,-22,-40,-34,-95,-97,-108,-105,-97,-104,-136,-72,-70,-14,-17,0,0,0,0,0,0,0,-22,-35,-27,-27,-45,-60,-66,-61,-65,-57,-79,-52,-41,-30,-40,-17,-37,-42,-78,-52,-81,-85,-84,-79,-81,-65,-67,0,-78,-77,-105,-108,-666,-637,-637,-629,-1193,-1095,-989,-1053,-837,-735,-961,-952,-952,-766,-735,-648,-1349,-1305,-1347,-1224,-1058,-1071,-746,-746,-737,-737,-582,-552]} 1. c4 {[%emt 0:00:06]} e5 {[%emt 0:01:26]} 2. g3 {[%emt 0:00:13]} Nf6 {[%emt 0:00:13][%cal Bg8f6,Bf6g4,Bg4e3][%mdl 32]} 3. Bg2 {[%emt 0:00:11]} Bc5 {[%emt 0:00:10]} 4. Nc3 {[%emt 0:04:01]} O-O {[%emt 0:01:58]} 5. Nf3 {[%emt 0:03:52]} e4 {[%emt 0:14:25]} 6. Ng5 {[%emt 0:02:28] A22: English Opening: 1...e5 2 Nc3 Nf6.} Bxf2+ $1 {[%emt 0:01:43][%mdl 64] [#] Decoy} 7. Kxf2 {[%emt 0:00:09]} Ng4+ {[%emt 0:00:06][%mdl 64] Discovered Attack} 8. Kg1 {[%emt 0:03:15] White is slightly better.} Qxg5 {[%emt 0:00:15]} 9. Nxe4 {[%emt 0:00:11]} Qe7 {[%emt 0:04:15]} 10. d4 {[%emt 0:07:20]} f5 {[%emt 0:01:17] [#]} (10... d5 $5 {[%cal Rd5e4]} 11. Nc3 (11. cxd5 Bf5 $11) 11... dxc4 $11) 11. Nc3 $146 {[%emt 0:01:34]} ({Predecessor:} 11. h3 Nf6 12. Nxf6+ Qxf6 13. Bf4 d6 14. Qd2 Nc6 15. Rd1 Bd7 16. Kh2 Rae8 17. Rhe1 {1-0 Movsesian,S (2699)-Khairullin,I (2658) Wch Blitz 7th 2013 (12)}) 11... Ne3 {[%emt 0:09:51] Inhibits e4.} 12. Nd5 {[%emt 0:07:43]} Nxd5 {[%emt 0:00:26]} 13. cxd5 {[%emt 0:00:18]} (13. Bxd5+ $142 Kh8 14. h4) 13... d6 $11 {[%emt 0:09:04]} 14. Qc2 {[%emt 0:06:43]} Nd7 {[%emt 0:13:58][%cal Bb8d7,Bd7f6,Bf6e4][%mdl 32]} 15. Qxc7 {[%emt 0:16:45]} Qxe2 {[%emt 0:00:26]} 16. Qc3 {[%emt 0:04:56]} ({White should play} 16. h3 $15) 16... Nf6 $17 {[%emt 0:03:47] Black is more active.} 17. Bf4 {[%emt 0:04:17]} Ne4 {[%emt 0:02:53]} (17... Ng4 18. Rf1 $14) 18. Bxe4 {[%emt 0:01:21]} fxe4 {[%emt 0:02:07]} 19. h3 {[%emt 0:03:59] White is weak on the light squares} Qb5 {[%emt 0:09:03]} (19... Rf6 $142 20. Rh2 Qh5) 20. Qb3 {[%emt 0:04:07]} ({But not} 20. Bxd6 Rf3 21. Qc1 Qd3 $17) 20... Qxb3 {[%emt 0:02:02]} (20... Qd7 $15 21. Qc2 Qe7) 21. axb3 $11 {[%emt 0:00:06]} Rd8 {[%emt 0:11:57]} 22. Kf2 {[%emt 0:03:24]} b6 {[%emt 0:04:57]} 23. Rhc1 Bxh3 {[%emt 0:01:03]} 24. Rc6 {[%emt 0:12:50]} e3+ {[%emt 0:03:47]} 25. Bxe3 {[%emt 0:07:50]} Rd7 {[%emt 0:00:17]} 26. Bf4 {[%emt 0:05:16]} Rad8 {[%emt 0:00:31]} 27. Rac1 {[%emt 0:00:57]} h6 {[%emt 0:01:52]} 28. Rc8 {[%emt 0:02:14]} g5 29. Rxd8+ {[%emt 0:00:30]} Rxd8 $15 {[%mdl 4096] Endgame KRB-KRB} 30. Be3 {[%emt 0:00:30]} Bf5 31. Bd2 {[%emt 0:00:30]} Kf7 32. Kf3 {[%emt 0:00:30]} Rd7 33. g4 {[%emt 0:00:30]} Bg6 34. Rc8 {[%emt 0:00:30]} Bb1 (34... Kg7 $5 {[%cal Rg6f7]}) 35. Rh8 {[%emt 0:00:30]} Kg7 36. Re8 {[%emt 0:00:30]} Bc2 37. Re3 {[%emt 0:00:30]} Bd1+ 38. Kg3 {[%emt 0:00:30]} Bc2 (38... a5 $15) 39. Kh3 {[%emt 0:00:30]} (39. Kf3 $1 $11 {keeps the balance.}) 39... Bg6 40. Re6 {[%emt 0:00:30]} Bf7 41. Bb4 $2 {[%emt 0:50:30][%mdl 8192] White does not recover from this.} Bxe6 $19 {[%emt 0:29:24] Black is clearly winning.} 42. dxe6 {[%emt 0:00:30] KR-KB} Rd8 {[%emt 0:00:30]} 43. d5 {[%emt 0:00:30]} Kf6 {[%emt 0:00:30]} 44. Bc3+ {[%emt 0:00:30]} Ke7 {[%emt 0:00:30]} 45. Kg3 {[%emt 0:00:30]} Rc8 {[%emt 0:00:30] [#] aiming for ...Rc5.} 46. Bd4 {[%emt 0:00:30] Inhibits Rc5.} Rc1 {[%emt 0:00:30]} 47. Kf3 {[%emt 0:00:30]} Rd1 {[%emt 0:00:30]} 48. Ke4 {[%emt 0:00:30]} Re1+ {[%emt 0:00:30]} 49. Kf5 {[%emt 0:00:30]} Rf1+ {[%emt 0:00:30]} 50. Kg6 {[%emt 0:00:30]} Rf4 {[%emt 0:00:30][%csl LRd4,LRg4]} 51. Bg7 {[%emt 0:00:30]} Rxg4 {[%emt 0:00:30] Threatens to win with ...Rb4.} 52. Bxh6 {[%emt 0:00:30]} Rd4 {[%emt 0:00:30]} 53. Bxg5+ {[%emt 0:00:30]} Ke8 {[%emt 0:00:30]} 54. Kf6 {[%emt 0:00:30]} Rxd5 {[%emt 0:00:30] Weighted Error Value: White=0.55/Black=0.10 (very precise)} 0-1

[Event "Caplin Hastings Masters 2023-24"]
[Site "Hastings"]
[Date "2023.12.30"]
[Round "3.9"]
[White "Arkell, Keith C"]
[Black "Gasanov, Eldar"]
[Result "1/2-1/2"]
[ECO "A50"]
[WhiteElo "2371"]
[BlackElo "2487"]
[Annotator "TA"]
[PlyCount "54"]
[EventDate "2023.12.18"]
[EventType "swiss"]
[EventCountry "ENG"]
[SourceTitle "playchess.com"]
[Source "ChessBase"]
[SourceQuality "1"]
[TimeControl "40/6000+30:3000+30"]

{[%evp 12,54,16,18,30,33,31,8,15,8,28,24,20,21,18,-4,-4,-4,-11,-15,-10,-12,-16,-17,-18,-10,0,-23,0,0,0,0,0,0,0,0,0,0,0,0,0,0,0,0,0]} 1. d4 {[%emt 0:00:10]} Nf6 {[%emt 0:01:28]} 2. Nf3 {[%emt 0:00:16]} b6 {[%emt 0:00:20]} 3. c4 {[%emt 0:00:16]} Bb7 {[%emt 0:00:33]} 4. g3 {[%emt 0:00:24]} g6 {[%emt 0:00:40]} 5. Bg2 {[%emt 0:00:16]} Bg7 {[%emt 0:00:18]} 6. O-O {[%emt 0:00:25]} O-O {[%emt 0:00:21]} 7. d5 {[%emt 0:02:40]} Na6 {[%emt 0:03:43] A50: Queen's Fianchetto Defence (1 d4 Nf6 2 c4 b6).} 8. Nc3 {[%emt 0:00:16]} Nc5 {[%emt 0:00:27]} 9. Be3 {[%emt 0:02:36]} Ng4 {[%emt 0:07:56]} 10. Bd4 {[%emt 0:01:10]} e5 {[%emt 0:02:11]} 11. dxe6 {[%emt 0:00:06] [#]} dxe6 $146 {[%emt 0:03:16]} ({Predecessor:} 11... fxe6 12. Bxg7 Kxg7 13. Qd4+ Nf6 14. b4 Nce4 15. Nxe4 Bxe4 16. Rad1 Qe7 17. c5 Kg8 {1-0 Romanishin,O (2511)-Rombaldoni,A (2469) Forni di Sopra op 3rd 2012 (8)}) 12. Bxg7 {[%emt 0:00:40]} (12. e3 {is interesting.} Qe7 13. Bxg7 Kxg7 14. Nd4) 12... Kxg7 {[%emt 0:00:28]} 13. Qxd8 {[%emt 0:08:22]} Raxd8 {[%emt 0:04:10]} 14. Rfd1 {[%emt 0:00:34]} Bxf3 {[%emt 0:14:34]} 15. Bxf3 {[%emt 0:00:17]} Ne5 {[%emt 0:00:20]} 16. b3 {[%emt 0:00:08]} Nxf3+ {[%emt 0:03:00]} 17. exf3 {[%emt 0:00:06]} g5 {[%emt 0:07:23]} 18. Kf1 {[%emt 0:23:00]} c6 {[%emt 0:05:44]} 19. Ke2 {[%emt 0:01:30]} a5 {[%emt 0:00:45]} 20. Ke3 {[%emt 0:09:04] The position is equal.} Kf6 {[%emt 0:01:54]} 21. f4 {[%emt 0:05:29]} gxf4+ {[%emt 0:05:09]} 22. Kxf4 {[%emt 0:01:36]} e5+ {[%emt 0:02:41]} 23. Ke3 {[%emt 0:00:07]} Kf5 {[%emt 0:08:19]} 24. f3 {[%emt 0:04:22]} h5 {[%emt 0:05:08]} 25. Rxd8 {[%emt 0:03:35]} Rxd8 {[%emt 0:00:33]} 26. Rd1 {[%emt 0:00:05] Against Rd3+} Rxd1 {[%emt 0:08:26]} 27. Nxd1 {[%emt 0:00:05]} e4 {[%emt 0:00:19] Weighted Error Value: White=0.04 (flawless) /Black=0.03 (flawless)} 1/2-1/2

[Event "Caplin Hastings Masters 2023-24"]
[Site "Hastings"]
[Date "2023.12.30"]
[Round "3.10"]
[White "Grutter, Tim"]
[Black "Ghasi, Ameet K"]
[Result "0-1"]
[ECO "B10"]
[WhiteElo "2342"]
[BlackElo "2509"]
[Annotator "TA"]
[PlyCount "120"]
[EventDate "2023.12.18"]
[EventType "swiss"]
[EventCountry "ENG"]
[SourceTitle "playchess.com"]
[Source "ChessBase"]
[SourceQuality "1"]
[TimeControl "40/6000+30:3000+30"]

{[%evp 9,120,-4,19,18,8,-16,-3,-10,-10,-25,-5,-7,0,-23,-26,-21,-12,-17,-22,-21,-20,-19,-20,-14,-7,-11,-10,-15,-16,-78,0,-12,0,-145,-152,-148,-144,-143,-146,-146,-137,-145,-120,-118,-105,-107,-91,-111,-111,-111,-110,-118,-115,-129,-118,-141,-127,-129,-119,-128,-136,-134,-130,-125,-125,-129,-100,-100,-95,-127,-113,-193,-191,-199,-186,-199,-185,-189,-169,-191,-191,-191,-191,-193,-193,-218,-218,-231,-227,-228,-223,-349,-334,-365,-324,-1600,-1530,-1091,-1084,-883,-697,-679,-677,-656,-615,-639,-622,-603,-563,-839,-1112,-873,-856]} 1. e4 {[%emt 0:00:03]} c6 {[%emt 0:01:17]} 2. Nf3 {[%emt 0:00:07]} d5 {[%emt 0:00:18]} 3. d3 {[%emt 0:00:34]} Nd7 {[%emt 0:01:50]} 4. Nc3 {[%emt 0:09:08]} Ngf6 {[%emt 0:02:49]} 5. e5 {[%emt 0:06:56] [#]} d4 $1 {[%emt 0:00:19]} 6. exf6 {[%emt 0:00:31] B10: Caro-Kann: 2 d3 and 2 c4.} dxc3 {[%emt 0:00:08] [#]} 7. fxe7 $146 {[%emt 0:02:20]} ({Predecessor:} 7. fxg7 Bxg7 8. b3 Nf6 9. Be2 O-O 10. O-O Nd5 11. Re1 a5 12. a3 b5 13. Bg5 {1-0 Duda,J (2731)-Mitrabha,G (2471) Chess.com Rapid CGC KO 2022 (1.3)}) 7... Qxe7+ {[%emt 0:01:22]} 8. Qe2 {[%emt 0:01:05] The position is equal.} Qxe2+ {[%emt 0:04:32]} 9. Bxe2 {[%emt 0:06:41]} Bb4 {[%emt 0:13:58]} 10. O-O {[%emt 0:07:51]} O-O {[%emt 0:00:43]} 11. d4 {[%emt 0:10:42]} Re8 {[%emt 0:02:12]} 12. Bd3 {[%emt 0:02:19]} Nb6 {[%emt 0:07:47]} 13. a3 {[%emt 0:11:10]} cxb2 $1 {[%emt 0:01:59]} 14. Bxb2 {[%emt 0:00:02]} Ba5 {[%emt 0:02:57]} 15. c4 {[%emt 0:05:29]} f6 {[%emt 0:21:34]} 16. h3 {[%emt 0:05:09]} Be6 {[%emt 0:06:20]} 17. Rac1 {[%emt 0:00:21]} Bf7 {[%emt 0:01:27]} 18. Rfd1 {[%emt 0:02:47]} Rad8 {[%emt 0:03:22]} 19. Nd2 {[%emt 0:07:53]} (19. g3 $11 {remains equal.}) 19... Nd7 {[%emt 0:04:33]} ({Black should try} 19... Na4 $17 20. Rc2 (20. Ba1 Nc5 $17) 20... Nxb2 {[%mdl 64] Remove Defender} 21. Rxb2 Rxd4) 20. Nb3 {[%emt 0:01:39]} Bb6 {[%emt 0:01:09]} 21. Re1 {[%emt 0:03:51] [#] White is now going downhill.} (21. a4 $11) 21... Rxe1+ $1 $17 {[%emt 0:03:53][%mdl 64] Remove Defender} 22. Rxe1 {[%emt 0:00:02] [#]} Ne5 $1 {[%emt 0:00:19][%mdl 576] Pin, Double Attack} 23. Bf1 {[%emt 0:09:34]} Nxc4 {[%emt 0:05:18]} 24. Bxc4 {[%emt 0:00:08]} Bxc4 {[%emt 0:00:03]} 25. Nc5 {[%emt 0:00:05]} Bxc5 {[%emt 0:01:34]} 26. dxc5 {[%emt 0:00:03][%mdl 4096] Endgame KRB-KRB} Rd2 {[%emt 0:01:05]} 27. Bc3 {[%emt 0:01:09]} Rc2 {[%emt 0:01:03]} 28. Re3 {[%emt 0:01:10]} Kf7 {[%emt 0:01:05]} 29. Bb4 {[%emt 0:02:52]} Bd5 {[%emt 0:00:28]} 30. Rc3 {[%emt 0:00:30]} Rb2 {[%emt 0:13:00] Black is more active.} 31. Re3 {[%emt 0:00:56]} g5 {[%emt 0:00:40]} 32. Bc3 {[%emt 0:02:03]} Rb1+ {[%emt 0:03:03]} 33. Re1 {[%emt 0:01:31]} Rb5 {[%emt 0:01:05]} 34. Bd4 {[%emt 0:00:09]} Rb3 {[%emt 0:00:15]} 35. Re3 {[%emt 0:01:27]} Rb1+ {[%emt 0:00:07]} 36. Kh2 {[%emt 0:00:02]} Rd1 {[%emt 0:00:45]} 37. Bc3 {[%emt 0:01:00]} h5 {[%emt 0:00:53]} 38. Re1 {[%emt 0:02:31]} Rd3 {[%emt 0:00:05]} 39. Rc1 {[%emt 0:04:43]} b6 {[%emt 0:03:29][%cal Bb7b6,Bb6b5][%mdl 32]} 40. Bb4 {[%emt 0:00:36]} (40. cxb6 $17 {was called for.} axb6 41. a4) 40... b5 $19 {[%emt 0:00:54]} 41. Ra1 {[%emt 0:15:06]} Rd4 {[%emt 0:01:13]} 42. Re1 {[%emt 0:02:39]} Rc4 {[%emt 0:02:00]} 43. Re2 {[%emt 0:01:56]} Rc1 {[%emt 0:03:02]} 44. Re3 {[%emt 0:03:00]} Rc2 {[%emt 0:01:10]} 45. Kg1 {[%emt 0:01:16]} f5 {[%emt 0:07:12][%cal Bf6f5,Bf5f4,Bf4f3][%mdl 32]} 46. Re5 {[%emt 0:07:51]} Be6 {[%emt 0:01:22]} 47. f3 {[%emt 0:02:04]} Kf6 {[%emt 0:04:02]} 48. Re3 {[%emt 0:00:49]} f4 {[%emt 0:01:44]} 49. Re4 {[%emt 0:04:49]} Bd5 {[%emt 0:06:25]} 50. Re8 {[%emt 0:03:46] [#]} (50. Rd4 {might work better.}) 50... g4 $1 {[%emt 0:01:34][%mdl 512]} 51. hxg4 {[%emt 0:01:12]} (51. Ba5 gxh3) 51... hxg4 {[%emt 0:00:08]} 52. fxg4 $2 {[%emt 0:01:06]} (52. Kf1) 52... Rxg2+ {[%emt 0:00:20] Black is clearly winning.} 53. Kf1 {[%emt 0:00:04]} f3 {[%emt 0:01:41]} 54. Rf8+ {[%emt 0:02:14]} Ke7 {[%emt 0:02:37]} 55. Rf5 {[%emt 0:01:23]} Rxg4 {[%emt 0:00:33]} 56. Bc3 {[%emt 0:02:49]} Rc4 {[%emt 0:01:54]} 57. Re5+ {[%emt 0:03:04]} Kd7 {[%emt 0:00:10]} 58. Re3 {[%emt 0:03:51]} Rxc5 {[%emt 0:00:13]} 59. Bd4 {[%emt 0:00:19]} Rc2 {[%emt 0:01:20] ( -> ...Bc4+)} 60. Re5 {[%emt 0:00:35]} a5 {[%emt 0:00:15] Weighted Error Value: White=0.37/Black=0.11 (very precise)} 0-1

[Event "Caplin Hastings Masters 2023-24"]
[Site "Hastings"]
[Date "2023.12.30"]
[Round "3.11"]
[White "Edouard, Romain"]
[Black "Fischer, Daniel"]
[Result "1/2-1/2"]
[ECO "A07"]
[WhiteElo "2527"]
[BlackElo "2341"]
[Annotator "TA"]
[PlyCount "73"]
[EventDate "2023.12.18"]
[EventType "swiss"]
[EventCountry "ENG"]
[SourceTitle "playchess.com"]
[Source "ChessBase"]
[SourceQuality "1"]
[TimeControl "40/6000+30:3000+30"]

{[%evp 9,73,0,14,6,5,0,0,0,0,0,0,0,0,0,0,0,34,13,24,11,16,18,36,29,30,35,72,38,46,0,0,-17,-16,-82,-79,-93,-98,-105,-20,-12,-12,-30,-31,-26,0,-8,0,0,12,11,33,25,27,25,71,0,0,0,0,0,0,0,0,0,0,0]} 1. Nf3 {[%emt 0:00:03]} d5 {[%emt 0:00:05]} 2. g3 {[%emt 0:00:04]} Bg4 {[%emt 0:00:30]} 3. Bg2 {[%emt 0:00:05]} c6 {[%emt 0:00:14]} 4. h3 {[%emt 0:00:08]} Bxf3 {[%emt 0:01:25]} 5. Bxf3 {[%emt 0:00:05]} e5 {[%emt 0:00:19]} 6. d3 {[%emt 0:00:06] A07: Réti Opening: New York and Capablanca Systems.} Nf6 {[%emt 0:01:28]} 7. Bg2 {[%emt 0:00:15]} Bc5 {[%emt 0:01:08]} 8. Nd2 {[%emt 0:00:24]} O-O {[%emt 0:01:03]} 9. O-O {[%emt 0:00:08]} Nbd7 {[%emt 0:02:01]} 10. e4 {[%emt 0:00:06]} dxe4 {[%emt 0:03:03]} 11. dxe4 {[%emt 0:00:10]} Qe7 {[%emt 0:01:24]} 12. a4 {[%emt 0:01:17][%cal Ba2a4,Ba4a5][%mdl 32] [#]} h6 $146 {[%emt 0:10:54]} ({Predecessor:} 12... Rfd8 13. a5 a6 14. Qe2 Nf8 15. Nc4 Ne6 16. c3 Qc7 17. Kh2 Bf8 18. Be3 Bc5 {½-½ Priehoda,V (2380)-Bombek,P (2194) Brezova op Brezova pod Bradlom 2010 (9)}) 13. a5 {[%emt 0:00:24]} b5 {[%emt 0:07:52]} 14. Qe2 {[%emt 0:01:08]} a6 {[%emt 0:01:22]} 15. Nf3 {[%emt 0:00:07][%cal Bd2f3,Bf3h4,Bh4f5][%mdl 32]} Rfe8 {[%emt 0:05:56]} 16. Nh4 {[%emt 0:00:19]} Qd8 {[%emt 0:09:09]} 17. Nf5 {[%emt 0:01:08]} Qc7 {[%emt 0:03:02]} 18. Bd2 {[%emt 0:04:48]} Bf8 {[%emt 0:02:32]} 19. Rae1 {[%emt 0:02:44]} (19. Rfc1 $14) 19... Rad8 $11 {[%emt 0:10:39]} 20. f4 {[%emt 0:04:15]} exf4 {[%emt 0:04:35]} 21. gxf4 {[%emt 0:00:13]} (21. Bxf4 $11 {keeps the balance.} Qxa5 22. Kh1) 21... Nc5 $1 $17 {[%emt 0:02:36]} 22. Bc3 {[%emt 0:10:51] Bxf6 would be deadly.} Ncxe4 {[%emt 0:07:04]} 23. Nxh6+ {[%emt 0:08:44] [#]} Kh8 {[%emt 0:12:00]} (23... gxh6 $6 24. Bxe4 Bc5+ 25. Kh1 $11) (23... Kh7 $1 $17 24. Ng4 Qa7+ 25. Kh2 (25. Qe3 $2 Bc5 $19) 25... Nxg4+ 26. Qxg4 Nxc3 27. bxc3 (27. Rxe8 Rxe8 28. bxc3 Qc7 $17) 27... Rxe1 28. Rxe1 Qc7 29. Be4+ g6) 24. Bxe4 $11 {[%emt 0:02:25]} Rxe4 {[%emt 0:01:29]} (24... Nxe4 25. Qh5 Nxc3 26. Nxf7+ Kg8 27. Nxd8 Rxd8 28. bxc3 $16) 25. Qf3 {[%emt 0:13:21] aiming for Bxf6.} Rxe1 {[%emt 0:07:32]} 26. Rxe1 {[%emt 0:00:07][%cal Bf1e1,Be1e2,Be2f2][%mdl 32] And now Bxf6 would win.} Re8 {[%emt 0:02:06]} 27. Be5 {[%emt 0:26:38]} Bd6 {[%emt 0:04:48]} (27... gxh6 $2 28. Bxf6+ Kg8 29. Rxe8 $18) 28. Re2 {[%emt 0:15:17] Bxd6 is the strong threat.} Bxe5 {[%emt 0:02:43]} (28... Qxa5 $2 29. Nxf7+ Kg8 30. Nxd6 $18) 29. fxe5 {[%emt 0:00:02]} gxh6 {[%emt 0:00:59]} ({Resist} 29... Qa7+ 30. Kf1 Qd7 31. Nxf7+ Qxf7 32. exf6 Rxe2 33. fxg7+ (33. Kxe2 Qe6+ 34. Qe3 Qxf6 $11) 33... Qxg7 34. Kxe2 Qxb2 35. Qxc6 $16) 30. Qxf6+ {[%emt 0:01:21][%mdl 4096] Endgame KQR-KQR} Kh7 {[%emt 0:00:05]} 31. Rf2 {[%emt 0:04:43]} Rg8+ {[%emt 0:02:17] [#]} (31... Qxa5 {leads to mate.} 32. Qxf7+ (32. Qxc6 $2 {loses.} Qe1+ 33. Rf1 Rg8+ $19) 32... Kh8 33. Qxe8+ Kh7 34. Rf7+ Kg6 35. Qg8+ Kh5 36. Qg4#) (31... Rxe5 $11 {might be stronger.} 32. Qxf7+ Qxf7 33. Rxf7+ Kg6) 32. Kh2 {[%emt 0:09:51] White is more active.} (32. Kf1 $1 $16) 32... Rg7 {[%emt 0:00:05] The position is equal.} 33. b4 {[%emt 0:00:12]} Qa7 {[%emt 0:00:35]} 34. Rg2 {[%emt 0:03:03]} Rxg2+ {[%emt 0:00:05]} 35. Kxg2 {[%emt 0:00:02]} Qd7 {[%emt 0:00:34]} 36. Qd6 {[%emt 0:00:47]} Qf5 {[%emt 0:00:52]} 37. Qxc6 {[%emt 0:01:27] Weighted Error Value: White=0.11 (very precise) /Black=0.10 (very precise)} 1/2-1/2

[Event "Caplin Hastings Masters 2023-24"]
[Site "Hastings"]
[Date "2023.12.30"]
[Round "3.12"]
[White "Gormally, Daniel W"]
[Black "Kovalskyi, Roman"]
[Result "1-0"]
[ECO "B06"]
[WhiteElo "2442"]
[BlackElo "2009"]
[Annotator "ChessBase"]
[PlyCount "69"]
[EventDate "2023.12.18"]
[EventType "swiss"]
[EventCountry "ENG"]
[SourceTitle "playchess.com"]
[Source "ChessBase"]
[SourceQuality "1"]
[TimeControl "40/6000+30:3000+30"]

1. e4 {[%emt 0:00:03]} c5 {[%emt 0:02:25]} 2. Nf3 {[%emt 0:00:10]} g6 {[%emt 0:00:06]} 3. c3 {[%emt 0:00:18]} d5 {[%emt 0:00:08]} 4. exd5 {[%emt 0:00:08]} Qxd5 {[%emt 0:00:04]} 5. d4 {[%emt 0:00:05]} Bg7 {[%emt 0:00:05]} 6. Bb5+ {[%emt 0:00:41]} Bd7 {[%emt 0:01:07]} 7. Be2 {[%emt 0:00:09]} Nf6 {[%emt 0:01:09]} 8. c4 {[%emt 0:00:40]} Qd6 {[%emt 0:00:43]} 9. d5 {[%emt 0:00:09]} b5 {[%emt 0:05:53]} 10. O-O {[%emt 0:07:48]} O-O {[%emt 0:02:35]} 11. cxb5 {[%emt 0:01:55]} Nxd5 {[%emt 0:03:02]} 12. Nfd2 {[%emt 0:02:16]} Be6 {[%emt 0:05:21]} 13. Ne4 {[%emt 0:04:20]} Qb6 {[%emt 0:02:41]} 14. Ng5 {[%emt 0:05:37]} Nd7 {[%emt 0:15:13]} 15. Bf3 {[%emt 0:00:37]} Bd4 {[%emt 0:07:12]} 16. Nc3 {[%emt 0:08:31]} Nxc3 {[%emt 0:09:35]} 17. bxc3 {[%emt 0:00:06]} Bxc3 {[%emt 0:00:06]} 18. Bxa8 {[%emt 0:00:06]} Bxa1 {[%emt 0:10:42]} 19. Bc6 {[%emt 0:00:15]} Nb8 {[%emt 0:03:31]} 20. Nxe6 {[%emt 0:04:30]} fxe6 {[%emt 0:00:07]} 21. Qe2 {[%emt 0:08:49]} Nxc6 {[%emt 0:37:12]} 22. Qxe6+ {[%emt 0:00:09]} Kg7 {[%emt 0:00:04]} 23. bxc6 {[%emt 0:00:13]} Qc7 {[%emt 0:00:11]} 24. g3 {[%emt 0:10:10]} Rf6 {[%emt 0:01:26]} 25. Qe4 {[%emt 0:09:03]} Bd4 {[%emt 0:01:25]} 26. Bg5 {[%emt 0:04:47]} Rxc6 {[%emt 0:00:10]} 27. Bxe7 {[%emt 0:00:39]} Qb6 {[%emt 0:01:07]} 28. Re1 {[%emt 0:09:07]} c4 {[%emt 0:00:37]} 29. Bf8+ {[%emt 0:03:03]} Kxf8 {[%emt 0:00:32]} 30. Qe8+ {[%emt 0:00:50]} Kg7 {[%emt 0:00:05]} 31. Re7+ {[%emt 0:00:07]} Kh6 {[%emt 0:00:54]} 32. Qf8+ {[%emt 0:00:14]} Bg7 {[%emt 0:00:31]} 33. Qxg7+ {[%emt 0:00:12]} Kg5 {[%emt 0:00:04]} 34. Re5+ {[%emt 0:00:39]} Kg4 {[%emt 0:00:06]} 35. Kg2 {[%emt 0:00:40]} 1-0